fUST/lending_fUST_20250316
["ID","MTS","AMOUNT","RATE_DAILY","PERIOD"]
[356207509,1742069469633,-612.47,0.00012054,2]
[356207510,1742069469643,-500.0,0.00012054,2]
[356207511,1742069469653,-756.27,0.00012054,2]
[356207512,1742069469664,-839.59,0.00012054,2]
[356207513,1742069469674,-623.17,0.00012054,2]
[356207514,1742069469684,-405.63736,0.00012054,2]
[356207515,1742069469693,-405.63736,0.00012054,2]
[356207516,1742069469703,-500.0,0.00012054,2]
[356207517,1742069469712,-659.35,0.00012054,2]
[356207518,1742069469721,-328.51,0.00012054,2]
[356207519,1742069469729,-833.38,0.00012054,2]
[356207520,1742069469739,-151.0,0.00012054,2]
[356207521,1742069469749,-151.0,0.00012054,2]
[356207522,1742069469758,-349.060441,0.00012054,2]
[356207523,1742069469768,-349.060441,0.00012054,2]
[356207524,1742069469777,-315.111639,0.00012054,2]
[356207525,1742069469787,-315.111639,0.00012054,2]
[356207526,1742069469796,-153.056925,0.00012054,2]
[356207527,1742069469805,-153.056925,0.00012054,2]
[356207528,1742069469815,-500.0,0.00012054,2]
[356207529,1742069469824,-500.0,0.00012054,2]
[356207530,1742069469834,-1000.98,0.00012054,2]
[356207531,1742069469843,-1097.7,0.00012054,2]
[356207532,1742069469853,-4649.58,0.00012054,2]
[356207533,1742069469863,-1994.18,0.00012054,2]
[356207534,1742069469872,-46612.74,0.00012054,2]
[356207535,1742069469882,-500.0,0.00012054,2]
[356207536,1742069469891,-2353.9,0.00012054,2]
[356207537,1742069469901,-500.0,0.00012054,2]
[356207538,1742069469911,-500.0,0.00012054,2]
[356207539,1742069469921,-7964.85,0.00012054,2]
[356207540,1742069469931,-2651.85,0.00012054,2]
[356207541,1742069469941,-2898.71,0.00012054,2]
[356207542,1742069469951,-500.0,0.00012054,2]
[356207543,1742069469960,-500.0,0.00012054,2]
[356207544,1742069469969,-1506.38,0.00012054,2]
[356207545,1742069469978,-500.0,0.00012054,2]
[356207546,1742069469987,-1036.49,0.00012054,2]
[356207547,1742069469996,-769.78,0.00012054,2]
[356207548,1742069470006,-1490.03,0.00012054,2]
[356207549,1742069470015,-500.0,0.00012054,2]
[356207550,1742069470024,-897.81,0.00012054,2]
[356207551,1742069470033,-500.0,0.00012054,2]
[356207552,1742069470042,-6818.38,0.00012054,2]
[356207553,1742069470051,-941.95,0.00012054,2]
[356207554,1742069470060,-1936.37,0.00012054,2]
[356207555,1742069470068,-500.0,0.00012054,2]
[356207556,1742069470078,-151.0,0.00012054,2]
[356207557,1742069470088,-538.58,0.00012054,2]
[356207558,1742069470097,-500.0,0.00012054,2]
[356207559,1742069470107,-623.48,0.00012054,2]
[356207560,1742069470115,-162.98504056,0.00012054,2]
[356207561,1742069470372,-299.45683668,8.493e-05,2]
[356207562,1742069470382,-500.0,9.863e-05,2]
[356207563,1742069470391,-978.53495944,0.00012054,2]
[356207564,1742069470400,-804.44,0.00012054,2]
[356207565,1742069470410,-776.5,0.00012054,2]
[356207566,1742069470419,-2636.78,0.00012054,2]
[356207567,1742069470428,-3412.37,0.00012054,2]
[356207568,1742069470438,-589.09,0.00012054,2]
[356207569,1742069470447,-739.26,0.00012054,2]
[356207570,1742069470456,-786.72796,0.00012054,2]
[356207571,1742069470465,-1927.39,0.00012054,2]
[356207572,1742069470474,-786.72796,0.00012054,2]
[356207573,1742069470483,-500.0,0.00012054,2]
[356207574,1742069470493,-1279.39,0.00012054,2]
[356207575,1742069470503,-1401.46,0.00012054,2]
[356207576,1742069470516,-500.0,0.00012054,2]
[356207577,1742069470526,-373.309718,0.00012054,2]
[356207578,1742069470537,-828.76,0.00012054,2]
[356207579,1742069470546,-373.309718,0.00012054,2]
[356207580,1742069470556,-519.44,0.00012054,2]
[356207581,1742069470567,-1150.01,0.00012054,2]
[356207582,1742069470576,-1784.3,0.00012054,2]
[356207583,1742069470585,-500.0,0.00012054,2]
[356207584,1742069470594,-500.0,0.00012054,2]
[356207585,1742069470604,-649.36,0.00012054,2]
[356207586,1742069470614,-500.0,0.00012054,2]
[356207587,1742069470625,-500.0,0.00012054,2]
[356207588,1742069470636,-3090.87,0.00012054,2]
[356207589,1742069470646,-525.48,0.00012054,2]
[356207590,1742069470655,-2090.27,0.00012054,2]
[356207591,1742069470670,-834.96754831,0.00012148,2]
[356207592,1742069470680,-151.0,0.00012327,2]
[356207593,1742069470691,-504.2,0.00012328,2]
[356207594,1742069470706,-920.03,0.00012328,2]
[356207595,1742069470715,-612.47,0.00012328,2]
[356207596,1742069470725,-500.0,0.00012328,2]
[356207597,1742069470734,-756.27,0.00012328,2]
[356207598,1742069470744,-839.59,0.00012328,2]
[356207599,1742069470753,-623.17,0.00012328,2]
[356207600,1742069470763,-331.47,0.00012328,2]
[356207601,1742069470772,-8890.63307895,0.00012328,2]
[356207602,1742069470782,-659.35,0.00012328,2]
[356207603,1742069470791,-833.38,0.00012328,2]
[356207604,1742069470801,-500.0,0.00012328,2]
[356207605,1742069470810,-500.0,0.00012328,2]
[356207606,1742069470819,-1000.98,0.00012328,2]
[356207607,1742069470829,-1097.7,0.00012328,2]
[356207608,1742069470838,-4649.58,0.00012328,2]
[356207609,1742069470848,-1994.18,0.00012328,2]
[356207610,1742069470857,-46612.74,0.00012328,2]
[356207611,1742069470867,-572.72,0.00012328,2]
[356207612,1742069470876,-2353.9,0.00012328,2]
[356207613,1742069470886,-500.0,0.00012328,2]
[356207614,1742069470895,-500.0,0.00012328,2]
[356207615,1742069470905,-7964.85,0.00012328,2]
[356207616,1742069470915,-2651.85,0.00012328,2]
[356207617,1742069470925,-2898.71,0.00012328,2]
[356207618,1742069470934,-500.0,0.00012328,2]
[356207619,1742069470944,-500.0,0.00012328,2]
[356207620,1742069470954,-1506.38,0.00012328,2]
[356207621,1742069470964,-362.57,0.00012328,2]
[356207622,1742069470973,-1036.49,0.00012328,2]
[356207623,1742069470983,-769.78,0.00012328,2]
[356207624,1742069470992,-1490.03,0.00012328,2]
[356207625,1742069471002,-500.0,0.00012328,2]
[356207626,1742069471012,-897.81,0.00012328,2]
[356207627,1742069471021,-500.0,0.00012328,2]
[356207628,1742069471030,-6818.38,0.00012328,2]
[356207629,1742069471039,-941.95,0.00012328,2]
[356207630,1742069471048,-1936.37,0.00012328,2]
[356207631,1742069471058,-500.0,0.00012328,2]
[356207632,1742069471067,-500.0,0.00012328,2]
[356207633,1742069471077,-150.33,0.00012328,2]
[356207634,1742069471086,-966.786157,0.00012328,2]
[356207635,1742069471096,-538.58,0.00012328,2]
[356207636,1742069471105,-966.786157,0.00012328,2]
[356207637,1742069471115,-500.0,0.00012328,2]
[356207638,1742069471124,-623.48,0.00012328,2]
[356207639,1742069471134,-1141.52,0.00012328,2]
[356207640,1742069471143,-804.44,0.00012328,2]
[356207641,1742069471153,-776.5,0.00012328,2]
[356207642,1742069471162,-2636.78,0.00012328,2]
[356207643,1742069471172,-3412.37,0.00012328,2]
[356207644,1742069471181,-589.09,0.00012328,2]
[356207645,1742069471190,-739.26,0.00012328,2]
[356207646,1742069471200,-1927.39,0.00012328,2]
[356207647,1742069471209,-500.0,0.00012328,2]
[356207648,1742069471219,-1279.39,0.00012328,2]
[356207649,1742069471228,-513.68,0.00012328,2]
[356207650,1742069471238,-1401.46,0.00012328,2]
[356207651,1742069471247,-828.76,0.00012328,2]
[356207652,1742069471257,-1150.01,0.00012328,2]
[356207653,1742069471266,-1784.3,0.00012328,2]
[356207654,1742069471275,-416.96,0.00012328,2]
[356207655,1742069471285,-500.0,0.00012328,2]
[356207656,1742069471294,-649.36,0.00012328,2]
[356207657,1742069471304,-500.0,0.00012328,2]
[356207658,1742069471313,-500.0,0.00012328,2]
[356207659,1742069471322,-3090.87,0.00012328,2]
[356207660,1742069471332,-525.48,0.00012328,2]
[356207661,1742069471341,-2090.27,0.00012328,2]
[356207662,1742069471351,-1000.0,0.00012329,2]
[356207663,1742069471361,-500.0,0.00012339,2]
[356207664,1742069471371,-500.0,0.00012355,2]
[356207665,1742069471380,-150.33,0.00012355,2]
[356207666,1742069471389,-500.0,0.00012383,2]
[356207667,1742069471398,-245.98548302,0.00012383,2]
[356207668,1742069471407,-500.0,0.0001241,2]
[356207669,1742069471418,-500.0,0.00012438,2]
[356207670,1742069471430,-732.0,0.00012465,2]
[356207671,1742069471440,-160.0,0.0001248,4]
[356207672,1742069471450,-265.54226705,0.0001248,5]
[356207673,1742069471593,-11185.67477563,0.000125,2]
[356207674,1742069471604,-12005.55043933,0.00012562,2]
[356207675,1742069471613,-811.33,0.00012602,2]
[356207676,1742069471623,-504.2,0.00012602,2]
[356207677,1742069471634,-920.03,0.00012602,2]
[356207678,1742069471644,-612.47,0.00012602,2]
[356207679,1742069471653,-500.0,0.00012602,2]
[356207680,1742069471663,-756.27,0.00012602,2]
[356207681,1742069471672,-839.59,0.00012602,2]
[356207682,1742069471681,-623.17,0.00012602,2]
[356207683,1742069471691,-151.0,0.00012602,2]
[356207684,1742069471700,-896.10332,0.00012602,2]
[356207685,1742069471710,-896.10332,0.00012602,2]
[356207686,1742069471719,-151.0,0.00012602,2]
[356207687,1742069471728,-659.35,0.00012602,2]
[356207688,1742069471738,-833.38,0.00012602,2]
[356207689,1742069471747,-500.0,0.00012602,2]
[356207690,1742069471757,-500.0,0.00012602,2]
[356207691,1742069471767,-1000.98,0.00012602,2]
[356207692,1742069471776,-1097.7,0.00012602,2]
[356207693,1742069471785,-4649.58,0.00012602,2]
[356207694,1742069471795,-1994.18,0.00012602,2]
[356207695,1742069471805,-46612.74,0.00012602,2]
[356207696,1742069471815,-2353.9,0.00012602,2]
[356207697,1742069471824,-408.208586,0.00012602,2]
[356207698,1742069471833,-408.208586,0.00012602,2]
[356207699,1742069471843,-151.0,0.00012602,2]
[356207700,1742069471853,-159.55927824,0.00012602,2]
[356207701,1742069471863,-500.0,0.00012602,2]
[356207702,1742069471873,-7964.85,0.00012602,2]
[356207703,1742069471883,-2651.85,0.00012602,2]
[356207704,1742069471892,-2898.71,0.00012602,2]
[356207705,1742069471901,-596.36,0.00012602,2]
[356207706,1742069471911,-598.3,0.00012602,2]
[356207707,1742069471920,-1506.38,0.00012602,2]
[356207708,1742069471930,-195.99311,0.00012602,2]
[356207709,1742069471939,-151.0,0.00012602,2]
[356207710,1742069471948,-1036.49,0.00012602,2]
[356207711,1742069471957,-151.0,0.00012602,2]
[356207712,1742069471967,-769.78,0.00012602,2]
[356207713,1742069471976,-1490.03,0.00012602,2]
[356207714,1742069471985,-500.0,0.00012602,2]
[356207715,1742069471995,-897.81,0.00012602,2]
[356207716,1742069472005,-500.0,0.00012602,2]
[356207717,1742069472014,-263.461269,0.00012602,2]
[356207718,1742069472024,-263.461269,0.00012602,2]
[356207719,1742069472034,-6818.38,0.00012602,2]
[356207720,1742069472043,-941.95,0.00012602,2]
[356207721,1742069472053,-1936.37,0.00012602,2]
[356207722,1742069472063,-500.0,0.00012602,2]
[356207723,1742069472073,-538.58,0.00012602,2]
[356207724,1742069472082,-595.27,0.00012602,2]
[356207725,1742069472092,-623.48,0.00012602,2]
[356207726,1742069472101,-1141.52,0.00012602,2]
[356207727,1742069472111,-804.44,0.00012602,2]
[356207728,1742069472120,-776.5,0.00012602,2]
[356207729,1742069472131,-2636.78,0.00012602,2]
[356207730,1742069472142,-3412.37,0.00012602,2]
[356207731,1742069472151,-589.09,0.00012602,2]
[356207732,1742069472160,-739.26,0.00012602,2]
[356207733,1742069472170,-1927.39,0.00012602,2]
[356207734,1742069472179,-500.0,0.00012602,2]
[356207735,1742069472189,-1279.39,0.00012602,2]
[356207736,1742069472199,-1401.46,0.00012602,2]
[356207737,1742069472208,-828.76,0.00012602,2]
[356207738,1742069472217,-1150.01,0.00012602,2]
[356207739,1742069472227,-1784.3,0.00012602,2]
[356207740,1742069472236,-500.0,0.00012602,2]
[356207741,1742069472245,-649.36,0.00012602,2]
[356207742,1742069472254,-500.0,0.00012602,2]
[356207743,1742069472263,-500.0,0.00012602,2]
[356207744,1742069472273,-3090.87,0.00012602,2]
[356207745,1742069472283,-525.48,0.00012602,2]
[356207746,1742069472292,-2090.27,0.00012602,2]
[356207747,1742069472301,-500.0,0.00012733,2]
[356207748,1742069472311,-1298.63440472,0.00012876,2]
[356207749,1742069472325,-45615.76765515,0.00012876,2]
[356207750,1742069472335,-811.33,0.00012876,2]
[356207751,1742069472344,-504.2,0.00012876,2]
[356207752,1742069472353,-920.03,0.00012876,2]
[356207753,1742069472363,-612.47,0.00012876,2]
[356207754,1742069472373,-500.0,0.00012876,2]
[356207755,1742069472383,-756.27,0.00012876,2]
[356207756,1742069472392,-839.59,0.00012876,2]
[356207757,1742069472402,-623.17,0.00012876,2]
[356207758,1742069472411,-659.35,0.00012876,2]
[356207759,1742069472420,-833.38,0.00012876,2]
[356207760,1742069472430,-500.0,0.00012876,2]
[356207761,1742069472439,-500.0,0.00012876,2]
[356207762,1742069472449,-1000.98,0.00012876,2]
[356207763,1742069472459,-1097.7,0.00012876,2]
[356207764,1742069472468,-4649.58,0.00012876,2]
[356207765,1742069472478,-1994.18,0.00012876,2]
[356207766,1742069472487,-46612.74,0.00012876,2]
[356207767,1742069472497,-2353.9,0.00012876,2]
[356207768,1742069472508,-500.0,0.00012876,2]
[356207769,1742069472521,-7964.85,0.00012876,2]
[356207770,1742069472531,-2651.85,0.00012876,2]
[356207771,1742069472540,-2898.71,0.00012876,2]
[356207772,1742069472551,-1506.38,0.00012876,2]
[356207773,1742069472560,-1036.49,0.00012876,2]
[356207774,1742069472569,-769.78,0.00012876,2]
[356207775,1742069472579,-1490.03,0.00012876,2]
[356207776,1742069472590,-500.0,0.00012876,2]
[356207777,1742069472600,-897.81,0.00012876,2]
[356207778,1742069472609,-500.0,0.00012876,2]
[356207779,1742069472619,-6818.38,0.00012876,2]
[356207780,1742069472628,-941.95,0.00012876,2]
[356207781,1742069472637,-1936.37,0.00012876,2]
[356207782,1742069472647,-500.0,0.00012876,2]
[356207783,1742069472656,-151.0,0.00012876,2]
[356207784,1742069472667,-538.58,0.00012876,2]
[356207785,1742069472678,-623.48,0.00012876,2]
[356207786,1742069472687,-1141.52,0.00012876,2]
[356207787,1742069472696,-804.44,0.00012876,2]
[356207788,1742069472706,-776.5,0.00012876,2]
[356207789,1742069472715,-2636.78,0.00012876,2]
[356207790,1742069472724,-3412.37,0.00012876,2]
[356207791,1742069472733,-589.09,0.00012876,2]
[356207792,1742069472743,-739.26,0.00012876,2]
[356207793,1742069472752,-786.72796,0.00012876,2]
[356207794,1742069472761,-1927.39,0.00012876,2]
[356207795,1742069472771,-786.72796,0.00012876,2]
[356207796,1742069472780,-500.0,0.00012876,2]
[356207797,1742069472790,-1279.39,0.00012876,2]
[356207798,1742069472799,-1401.46,0.00012876,2]
[356207799,1742069472809,-373.309718,0.00012876,2]
[356207800,1742069472818,-828.76,0.00012876,2]
[356207801,1742069472828,-373.309718,0.00012876,2]
[356207802,1742069472837,-1150.01,0.00012876,2]
[356207803,1742069472847,-1784.3,0.00012876,2]
[356207804,1742069472856,-500.0,0.00012876,2]
[356207805,1742069472866,-649.36,0.00012876,2]
[356207806,1742069472875,-500.0,0.00012876,2]
[356207807,1742069472885,-379.93591622,0.00012876,2]
[356207808,1742069472895,-3090.87,0.00012876,2]
[356207809,1742069472904,-525.48,0.00012876,2]
[356207810,1742069472914,-2090.27,0.00012876,2]
[356207811,1742069472923,-160.0,0.00012879,2]
[356207812,1742069472932,-193141.596979,0.0001288,2]
[356207813,1742069472941,-1206.00043024,0.0001288,2]
[356207814,1742069472951,-1206.00043024,0.0001288,2]
[356207815,1742069472960,-1206.00043024,0.0001288,2]
[356207816,1742069472970,-309.92031709,0.0001288,2]
[356207817,1742069472989,-927.88964268,0.00011071,2]
[356207818,1742069472999,-896.08011315,0.0001288,2]
[356207819,1742069473010,-1206.00043024,0.0001288,2]
[356207820,1742069473020,-1206.00043024,0.0001288,2]
[356207821,1742069473029,-1206.00043024,0.0001288,2]
[356207822,1742069473039,-1206.00043024,0.0001288,2]
[356207823,1742069473048,-1206.00043024,0.0001288,2]
[356207824,1742069473058,-1206.00043024,0.0001288,2]
[356207825,1742069473068,-1206.00043024,0.0001288,2]
[356207826,1742069473078,-1206.00043024,0.0001288,2]
[356207827,1742069473088,-1206.00043024,0.0001288,2]
[356207828,1742069473098,-1206.00043024,0.0001288,2]
[356207829,1742069473108,-1206.00043024,0.0001288,2]
[356207830,1742069473117,-1206.00043024,0.0001288,2]
[356207831,1742069473127,-1206.00043024,0.0001288,2]
[356207832,1742069473137,-1206.00043024,0.0001288,2]
[356207833,1742069473147,-1206.00043024,0.0001288,2]
[356207834,1742069473156,-1206.0,0.0001288,2]
[356207835,1742069473165,-2814.0010039,0.0001288,2]
[356207836,1742069473176,-2814.0010039,0.0001288,2]
[356207837,1742069473186,-2814.0010039,0.0001288,2]
[356207838,1742069473195,-2814.0010039,0.0001288,2]
[356207839,1742069473205,-2814.0010039,0.0001288,2]
[356207840,1742069473214,-2177.02496734,0.0001288,2]
[356207841,1742069473542,-514.01,8.219e-05,2]
[356207842,1742069473552,-569.48147303,8.219e-05,2]
[356207843,1742069473562,-776.86,8.219e-05,2]
[356207844,1742069473571,-776.86,8.493e-05,2]
[356207845,1742069473581,-776.86,8.767e-05,2]
[356207846,1742069473591,-776.86,9.041e-05,2]
[356207847,1742069473601,-500.0,9.315e-05,2]
[356207848,1742069473611,-776.86,9.315e-05,2]
[356207849,1742069473622,-500.0,9.589e-05,2]
[356207850,1742069473632,-260.04113818,9.589e-05,2]
[356207851,1742069473644,-516.81886182,9.589e-05,2]
[356207852,1742069473655,-500.0,9.863e-05,2]
[356207853,1742069473664,-500.0,0.00010136,2]
[356207854,1742069473674,-449.56923753,0.00010136,2]
[356207855,1742069473684,-500.0,0.0001041,2]
[356207856,1742069473694,-500.0,0.00010684,2]
[356207857,1742069473704,-500.0,0.00010958,2]
[356207858,1742069473713,-962.22155946,0.00011126,2]
[356207859,1742069473723,-997.82375716,0.00011181,2]
[356207860,1742069473734,-500.0,0.00011232,2]
[356207861,1742069473743,-500.0,0.00011232,2]
[356207862,1742069473753,-1034.74323617,0.00011236,2]
[356207863,1742069473762,-1073.02873591,0.00011291,2]
[356207864,1742069473771,-1112.73079914,0.00011346,2]
[356207865,1742069473781,-1153.9018387,0.00011401,2]
[356207866,1742069473791,-1800.0,0.00011456,2]
[356207867,1742069473801,-500.0,0.00011506,2]
[356207868,1742069473811,-435.26,0.00011506,2]
[356207869,1742069473821,-270.97,0.0001178,2]
[356207870,1742069473831,-855.74,0.00012054,2]
[356207871,1742069473841,-855.74,0.00012328,2]
[356207872,1742069474023,-855.74,0.00012602,2]
[356207873,1742069474084,-855.74,0.00012876,2]
[356207874,1742069474141,-636.97603656,0.0001288,2]
[356207875,1742069474263,-2814.0010039,0.0001288,2]
[356207876,1742069474388,-2814.0010039,0.0001288,2]
[356207877,1742069474554,-2814.0010039,0.0001288,2]
[356207878,1742069474674,-2814.0010039,0.0001288,2]
[356207879,1742069474807,-2814.0010039,0.0001288,2]
[356207880,1742069474920,-2814.0010039,0.0001288,2]
[356207881,1742069475012,-2814.0010039,0.0001288,2]
[356207882,1742069475095,-2814.0010039,0.0001288,2]
[356207883,1742069475116,-2814.0010039,0.0001288,2]
[356207884,1742069475126,-2814.0010039,0.0001288,2]
[356207885,1742069475137,-2814.0010039,0.0001288,2]
[356207886,1742069475146,-2814.0010039,0.0001288,2]
[356207887,1742069475156,-2814.0,0.0001288,2]
[356207888,1742069475165,-151.0,0.0001288,2]
[356207889,1742069475174,-2017.290023,0.0001288,2]
[356207890,1742069475184,-2017.290023,0.0001288,2]
[356207891,1742069475193,-151.0,0.0001288,2]
[356207892,1742069475203,-1903.594302,0.0001288,2]
[356207893,1742069475212,-1903.594302,0.0001288,2]
[356207894,1742069475221,-14413.29866636,0.000129,2]
[356207895,1742069475231,-14413.29866636,0.000129,2]
[356207896,1742069475240,-956.67646279,0.000129,2]
[356207897,1742069475252,-604.46960582,0.000129,2]
[356207898,1742069475656,-5000.0,8.137e-05,2]
[356207899,1742069475666,-500.0,8.219e-05,2]
[356207900,1742069475676,-500.0,8.219e-05,2]
[356207901,1742069475685,-500.0,8.219e-05,2]
[356207902,1742069475695,-500.0,8.219e-05,2]
[356207903,1742069475704,-500.0,8.493e-05,2]
[356207904,1742069475714,-500.0,8.493e-05,2]
[356207905,1742069475723,-500.0,8.493e-05,2]
[356207906,1742069475733,-500.0,8.493e-05,2]
[356207907,1742069475743,-151.45214785,8.767e-05,2]
[356207908,1742069475753,-500.0,8.767e-05,2]
[356207909,1742069475763,-500.0,8.767e-05,2]
[356207910,1742069475772,-500.0,8.767e-05,2]
[356207911,1742069475782,-500.0,9.041e-05,2]
[356207912,1742069475792,-500.0,9.041e-05,2]
[356207913,1742069475802,-500.0,9.041e-05,2]
[356207914,1742069475812,-500.0,9.315e-05,2]
[356207915,1742069475822,-500.0,9.589e-05,2]
[356207916,1742069475834,-776.86,9.863e-05,2]
[356207917,1742069475844,-500.0,9.863e-05,2]
[356207918,1742069475853,-776.86,0.00010136,2]
[356207919,1742069475862,-500.0,0.00010136,2]
[356207920,1742069475871,-776.86,0.0001041,2]
[356207921,1742069475881,-500.0,0.0001041,2]
[356207922,1742069475890,-776.86,0.00010684,2]
[356207923,1742069475899,-500.0,0.00010684,2]
[356207924,1742069475908,-776.86,0.00010958,2]
[356207925,1742069475918,-472.97330394,0.00010958,2]
[356207926,1742069475934,-27.02669606,0.00010958,2]
[356207927,1742069475943,-3632.35,0.00010959,2]
[356207928,1742069475952,-776.86,0.00011232,2]
[356207929,1742069475961,-776.86,0.00011506,2]
[356207930,1742069475971,-776.86,0.0001178,2]
[356207931,1742069475979,-776.86,0.00012054,2]
[356207932,1742069475989,-776.86,0.00012328,2]
[356207933,1742069475998,-776.86,0.00012602,2]
[356207934,1742069476008,-776.86,0.00012876,2]
[356207935,1742069476017,-313.22015097,0.000129,2]
[356207936,1742069476030,-2499.275,0.000129,2]
[356207937,1742069476258,-500.0,8.219e-05,2]
[356207938,1742069476268,-1450.59,8.219e-05,2]
[356207939,1742069476279,-500.0,8.219e-05,2]
[356207940,1742069476289,-500.0,8.493e-05,2]
[356207941,1742069476299,-1361.56887578,8.493e-05,2]
[356207942,1742069476310,-89.02112422,8.493e-05,2]
[356207943,1742069476321,-500.0,8.767e-05,2]
[356207944,1742069476331,-1450.59,8.767e-05,2]
[356207945,1742069476342,-500.0,9.041e-05,2]
[356207946,1742069476352,-500.0,9.315e-05,2]
[356207947,1742069476362,-500.0,9.589e-05,2]
[356207948,1742069476372,-500.0,0.00011232,2]
[356207949,1742069476383,-500.0,0.00011506,2]
[356207950,1742069476393,-500.0,0.0001178,2]
[356207951,1742069476404,-305.6,0.00012054,2]
[356207952,1742069476414,-10039.65744678,0.000129,2]
[356207953,1742069476424,-500.0,0.00012989,2]
[356207954,1742069476434,-160.0,0.00012999,2]
[356207955,1742069476444,-20560.70731748,0.00013,2]
[356207956,1742069476456,-9771.89,0.00013,2]
[356207957,1742069476476,-500.0,9.863e-05,2]
[356207958,1742069476486,-75644.19782073,0.00013,2]
[356207959,1742069476496,-28896.95410205,0.00013,3]
[356207960,1742069476507,-256633.83961526,0.00013,2]
[356207961,1742069476521,-900.0,0.00013,2]
[356207962,1742069476531,-405.63736,0.00013,2]
[356207963,1742069476541,-405.63736,0.00013,2]
[356207964,1742069476551,-151.0,0.00013,2]
[356207965,1742069476562,-896.10332,0.00013,2]
[356207966,1742069476572,-896.10332,0.00013,2]
[356207967,1742069476582,-151.0,0.00013,2]
[356207968,1742069476592,-151.0,0.00013,2]
[356207969,1742069476602,-271.363815,0.00013,2]
[356207970,1742069476613,-349.060441,0.00013,2]
[356207971,1742069476624,-349.060441,0.00013,2]
[356207972,1742069476634,-315.111639,0.00013,2]
[356207973,1742069476644,-315.111639,0.00013,2]
[356207974,1742069476654,-153.056925,0.00013,2]
[356207975,1742069476664,-153.056925,0.00013,2]
[356207976,1742069476673,-408.208586,0.00013,2]
[356207977,1742069476682,-408.208586,0.00013,2]
[356207978,1742069476694,-151.0,0.00013,2]
[356207979,1742069476704,-151.0,0.00013,2]
[356207980,1742069476713,-223.181053,0.00013,2]
[356207981,1742069476723,-263.461269,0.00013,2]
[356207982,1742069476734,-263.461269,0.00013,2]
[356207983,1742069476743,-151.0,0.00013,2]
[356207984,1742069476753,-966.786157,0.00013,2]
[356207985,1742069476764,-966.786157,0.00013,2]
[356207986,1742069476775,-786.72796,0.00013,2]
[356207987,1742069476786,-786.72796,0.00013,2]
[356207988,1742069476796,-373.309718,0.00013,2]
[356207989,1742069476806,-373.309718,0.00013,2]
[356207990,1742069476816,-500.0,0.00013001,2]
[356207991,1742069476826,-500.0,0.00013001,2]
[356207992,1742069476836,-500.0,0.00013001,2]
[356207993,1742069476846,-500.0,0.00013001,2]
[356207994,1742069476856,-500.0,0.00013001,2]
[356207995,1742069476866,-500.0,0.00013001,2]
[356207996,1742069476876,-500.0,0.00013001,2]
[356207997,1742069476886,-500.0,0.00013001,2]
[356207998,1742069476896,-500.0,0.00013001,2]
[356207999,1742069476907,-500.0,0.00013001,2]
[356208000,1742069476917,-226.22,0.00013001,2]
[356208001,1742069476927,-8374.62966445,0.00013028,2]
[356208002,1742069476940,-1652.96981292,0.00013028,2]
[356208003,1742069476951,-627.0,0.000131,2]
[356208004,1742069476961,-150.0,0.00013111,2]
[356208005,1742069476971,-292.26903774,0.00013111,2]
[356208006,1742069476981,-811.33,0.0001315,2]
[356208007,1742069476992,-920.03,0.0001315,2]
[356208008,1742069477002,-151.0,0.0001315,2]